Workbook

Sheet Original Data
A2: 2012-2013 season | B2: （mg.d-1) Rate of grain filling
B3: 2013年 | C3: 2013年
A4: 花后时间(d) Days after Anthesis | B4: IH | C4: CK | D4: IH/CK %
A5: An6d | B5: 0.664700042 | C5: 1.368333333 | D5: =SUM((B5-C5)/C5*100) -> -51.42265223
A6: An12d | B6: 1.540580357 | C6: 1.734088457 | D6: -11.15906744
A7: An18d | B7: 1.419387391 | C7: 1.777420507 | D7: -20.14341091
A8: An24d | B8: 1.266300475 | C8: 1.418918919 | D8: -10.75596649
A9: An30d | B9: 1.173432602 | C9: 1.186736475 | D9: -1.121046914
A10: An36d | B10: 1.028349836 | C10: 1.029668412 | D10: -0.1280583173
A19: 2011-2012 season | B19: 灌浆速率（mg.d-1) Rate of grain filling
B20: 2012年 | C20: 2012年
A21: 花后时间(d) Days after Anthesis | B21: IH | C21: CK
A22: An6d | B22: 0.2583333333 | C22: 0.675 | D22: =SUM((B22-C22)/C22*100) -> -61.72839506
A23: An12d | B23: 1.229166667 | C23: 1.245833333 | D23: -1.337792642
A24: An18d | B24: 1.366666667 | C24: 1.375 | D24: -0.6060606061
A25: An24d | B25: 1.205833333 | C25: 1.347916667 | D25: -10.54095827
A26: An30d | B26: 1.123333333 | C26: 1.355 | D26: -17.09717097
A27: An36d | B27: 1.025 | C27: 1.15 | D27: -10.86956522
B37: （mg.d-1) Rate of grain filling
A38: 2010-2011 season | B38: 2011年 | C38: 2011年
A39: 花后时间(d) Days after Anthesis | B39: IH | C39: CK
A40: An6d | B40: 0.225 | C40: 0.895 | D40: =SUM((B40-C40)/C40*100) -> -74.8603352
A41: An12d | B41: 0.4166666667 | C41: 0.7041666667 | D41: -40.82840237
A42: An18d | B42: 0.9638888889 | C42: 1.102777778 | D42: -12.59445844
A43: An24d | B43: 1.077083333 | C43: 1.241666667 | D43: -13.25503356
A44: An30d | B44: 1.078333333 | C44: 1.24 | D44: -13.03763441
A45: An36d | B45: 1.047222222 | C45: 1.097222222 | D45: -4.556962025
A54: 2011-2013 season
A55: 花后时间(d) Days after Anthesis | B55: IH | C55: CK
A56: An6d | B56: 0.3826777918 | C56: 0.9794444444 | D56: =SUM((B56-C56)/C56*100) -> -60.9290967
A57: An12d | B57: 1.062137897 | C57: 1.228029486 | D57: -13.50876269
A58: An18d | B58: 1.249980982 | C58: 1.418399428 | D58: -11.87383771
A59: An24d | B59: 1.183072381 | C59: 1.336167417 | D59: -11.45777353
A60: An30d | B60: 1.12503309 | C60: 1.260578825 | D60: -10.75265843
A61: An36d | B61: 1.033524019 | C61: 1.092296878 | D61: -5.380667094
A77: The TWK and TKWL difference of IH and CK among different crop seasons
A78: IH与CK差异结果
A79: IH比CK多 %
A80: 花后时间(d) | B80: 2011 | C80: 2012 | D80: 2013
A81: An6d | B81: -74.8603352 | C81: -61.72839506 | D81: -51.42265223 | E81: =AVERAGE(B81:D81) -> -62.67046083
A82: An12d | B82: -40.82840237 | C82: -1.337792642 | D82: -11.15906744 | E82: =AVERAGE(B82:D82) -> -17.77508748
A83: An18d | B83: -12.59445844 | C83: -0.6060606061 | D83: -20.14341091 | E83: -11.11464332
A84: An24d | B84: -13.25503356 | C84: -10.54095827 | D84: -10.75596649 | E84: -11.51731944
A85: An30d | B85: -13.03763441 | C85: -17.09717097 | D85: -1.121046914 | E85: -10.41861743
A86: An36d | B86: -4.556962025 | C86: -10.86956522 | D86: -0.1280583173 | E86: -5.184861853
B87: =AVERAGE(B81:B86) -> -26.52213767 | C87: =AVERAGE(C81:C86) -> -17.02999046 | D87: -15.78836705 | E87: -19.78016506
A93: 2012-2013年度 | B93: 平均千粒重(g)Average Thousand-kernel weight
A94: 花后时间(d) Days after Anthesis | B94: IH | C94: CK
A95: An6d | B95: 3.988200252 | C95: 8.21
A96: An12d | B96: 18.48696428 | C96: 20.80906149
A97: An18d | B97: 25.54897304 | C97: 31.99356913
A98: An24d | B98: 30.39121141 | C98: 34.05405405
A99: An30d | B99: 35.20297806 | C99: 35.60209424
A100: An36d | B100: 37.02059409 | C100: 37.06806283
A102: 2011-2012年度 | B102: 平均千粒重(g)Average Thousand-kernel weight
A103: 花后时间(d) Days after Anthesis | B103: IH | C103: CK
A104: An6d | B104: 1.55 | C104: 4.05
A105: An12d | B105: 14.75 | C105: 14.95
A106: An18d | B106: 24.6 | C106: 24.75
A107: An24d | B107: 28.94 | C107: 32.35
A108: An30d | B108: 33.7 | C108: 40.65
A109: An36d | B109: 36.9 | C109: 41.4
A111: 2010-2011年度 | B111: 平均千粒重(g)Average Thousand-kernel weight
A112: 花后时间(d) Days after Anthesis | B112: IH | C112: CK
A113: An6d | B113: 1.35 | C113: 5.37
A114: An12d | B114: 5 | C114: 8.45
A115: An18d | B115: 17.35 | C115: 19.85
A116: An24d | B116: 25.85 | C116: 29.8
A117: An30d | B117: 32.35 | C117: 37.2
A118: An36d | B118: 37.7 | C118: 39.5
A122: 2011-2013年度 | B122: 平均千粒重(g)Average Thousand-kernel weight
A123: 花后时间(d) Days after Anthesis | B123: IH | C123: CK
A124: An6d | B124: =AVERAGE((B113+B104+B95)/3) -> 2.296066751 | C124: =AVERAGE((C113+C104+C95)/3) -> 5.876666667
A125: An12d | B125: =AVERAGE((B114+B105+B96)/3) -> 12.74565476 | C125: 14.73635383
A126: An18d | B126: 22.49965768 | C126: 25.53118971
A127: An24d | B127: 28.39373714 | C127: 32.06801802
A128: An30d | B128: 33.75099269 | C128: 37.81736475
A129: An36d | B129: 37.2068647 | C129: 39.32268761
B133: TWK
C134: IH | D134: CK
A135: 2012-2013 season | C135: 37.02059409 | D135: 37.06806283
A136: 2011-2012 season | C136: 36.9 | D136: 41.4
A137: 2010-2011 season | C137: 37.7 | D137: 39.5
